fUST/lending_fUST_20250911
["ID","MTS","AMOUNT","RATE_DAILY","PERIOD"]
[384868245,1757602236971,-480.0,0.00013964,2]
[384868246,1757602236981,-480.0,0.00013964,2]
[384868247,1757602236991,-480.0,0.00013964,2]
[384868248,1757602237000,-482.05561058,0.00013964,2]
[384868249,1757602237009,-480.0,0.00013964,2]
[384868250,1757602237018,-480.0,0.00013964,2]
[384868251,1757602237027,-519.0824061,0.00013964,2]
[384868252,1757602237036,-480.8868455,0.00013964,2]
[384868253,1757602237045,-481.29838311,0.00013964,2]
[384868254,1757602237054,-480.0,0.00013964,2]
[384868255,1757602237063,-480.0,0.00013964,2]
[384868256,1757602237072,-480.0,0.00013964,2]
[384868257,1757602237081,-480.0,0.00013964,2]
[384868258,1757602237094,-480.0,0.00013964,2]
[384868259,1757602237103,-480.0,0.00013964,2]
[384868260,1757602237112,-480.0,0.00013964,2]
[384868261,1757602237122,-480.0,0.00013964,2]
[384868262,1757602237131,-480.0,0.00013964,2]
[384868263,1757602237141,-480.0,0.00013964,2]
[384868264,1757602237150,-480.0,0.00013964,2]
[384868265,1757602237161,-480.0,0.00013964,2]
[384868266,1757602237170,-480.0,0.00013964,2]
[384868267,1757602237180,-480.0,0.00013964,2]
[384868268,1757602237188,-480.0,0.00013964,2]
[384868269,1757602237197,-480.0,0.00013964,2]
[384868270,1757602237206,-480.0,0.00013964,2]
[384868271,1757602237215,-480.0,0.00013964,2]
[384868272,1757602237225,-480.0,0.00013964,2]
[384868273,1757602237234,-480.0,0.00013964,2]
[384868274,1757602237243,-480.0,0.00013964,2]
[384868275,1757602237252,-480.0,0.00013964,2]
[384868276,1757602237261,-480.0,0.00013964,2]
[384868277,1757602237271,-480.0,0.00013964,2]
[384868278,1757602237280,-480.0,0.00013964,2]
[384868279,1757602237289,-480.0,0.00013964,2]
[384868280,1757602237298,-480.0,0.00013964,2]
[384868281,1757602237307,-488.21436479,0.00013964,2]
[384868282,1757602237316,-480.0,0.00013964,2]
[384868283,1757602237326,-480.0,0.00013964,2]
[384868284,1757602237335,-480.0,0.00013964,2]
[384868285,1757602237344,-480.0,0.00013964,2]
[384868286,1757602237354,-480.0,0.00013964,2]
[384868287,1757602237363,-480.0,0.00013964,2]
[384868288,1757602237373,-619.0,0.00013964,2]
[384868289,1757602237382,-480.0,0.00013964,2]
[384868290,1757602237391,-480.0,0.00013964,2]
[384868291,1757602237400,-480.0,0.00013964,2]
[384868292,1757602237409,-480.0,0.00013964,2]
[384868293,1757602237419,-480.0,0.00013964,2]
[384868294,1757602237429,-480.0,0.00013964,2]
[384868295,1757602237438,-574.31,0.00013964,2]
[384868296,1757602237447,-480.0,0.00013964,2]
[384868297,1757602237456,-482.44110217,0.00013964,2]
[384868298,1757602237465,-480.0,0.00013964,2]
[384868299,1757602237474,-480.0,0.00013964,2]
[384868300,1757602237483,-465.50514985,0.00013964,2]
[384868301,1757602237492,-480.0,0.00013964,2]
[384868302,1757602237502,-480.0,0.00013964,2]
[384868303,1757602237511,-208.60472752,0.00013964,2]
[384868304,1757602237521,-480.0,0.00013964,2]
[384868305,1757602237530,-480.0,0.00013964,2]
[384868306,1757602237540,-480.0,0.00013964,2]
[384868307,1757602237549,-480.0,0.00013964,2]
[384868308,1757602237558,-480.0,0.00013964,2]
[384868309,1757602237567,-480.0,0.00013964,2]
[384868310,1757602237576,-480.0,0.00013964,2]
[384868311,1757602237585,-482.75407497,0.00013964,2]
[384868312,1757602237597,-567.15525277,0.00013964,2]
[384868313,1757602237606,-480.0,0.00013964,2]
[384868314,1757602237615,-480.0,0.00013964,2]
[384868315,1757602237629,-480.0,0.00013964,2]
[384868316,1757602237644,-485.08102179,0.00013964,2]
[384868317,1757602237658,-483.93249028,0.00013964,2]
[384868318,1757602237673,-482.26617379,0.00013964,2]
[384868319,1757602237685,-480.0,0.00013964,2]
[384868320,1757602237698,-480.0,0.00013964,2]
[384868321,1757602237711,-480.0,0.00013964,2]
[384868323,1757602237725,-480.0,0.00013964,2]
[384868324,1757602237738,-480.0,0.00013964,2]
[384868326,1757602237750,-481.40511799,0.00013964,2]
[384868328,1757602237763,-480.21392795,0.00013964,2]
[384868330,1757602237778,-480.0,0.00013964,2]
[384868331,1757602237791,-480.0,0.00013964,2]
[384868332,1757602237802,-484.62069244,0.00013964,2]
[384868333,1757602237815,-480.0,0.00013964,2]
[384868334,1757602237827,-480.0,0.00013964,2]
[384868335,1757602237840,-480.0,0.00013964,2]
[384868336,1757602237853,-193.1361896,0.00013964,2]
[384868337,1757602237865,-363.54,0.00013964,2]
[384868338,1757602237878,-480.0,0.00013964,2]
[384868339,1757602237888,-480.0,0.00013964,2]
[384868340,1757602237900,-480.0,0.00013964,2]
[384868341,1757602237911,-480.0,0.00013964,2]
[384868342,1757602237924,-480.0,0.00013964,2]
[384868343,1757602237936,-480.0,0.00013964,2]
[384868344,1757602237950,-480.54786962,0.00013964,2]
[384868346,1757602237961,-480.71529692,0.00013964,2]
[384868349,1757602237974,-481.17623103,0.00013964,2]
[384868351,1757602237988,-480.0,0.00013964,2]
[384868354,1757602238001,-480.0,0.00013964,2]
[384868356,1757602238013,-480.0,0.00013964,2]
[384868357,1757602238023,-480.0,0.00013964,2]
[384868358,1757602238033,-520.03,0.00013964,2]
[384868359,1757602238044,-600.76,0.00013964,2]
[384868360,1757602238057,-522.83658371,0.00013964,2]
[384868361,1757602238071,-480.0,0.00013964,2]
[384868363,1757602238083,-194.06086702,0.00013964,2]
[384868364,1757602238093,-480.0,0.00013964,2]
[384868365,1757602238104,-480.0,0.00013964,2]
[384868366,1757602238116,-480.0,0.00013964,2]
[384868367,1757602238129,-529.13484987,0.00013964,2]
[384868370,1757602238140,-500.0,0.00013967,2]
[384868372,1757602238151,-480.0,0.00013968,2]
[384868374,1757602238162,-480.0,0.00013968,2]
[384868376,1757602238174,-480.0,0.00013968,2]
[384868378,1757602238185,-480.0,0.00013968,2]
[384868380,1757602238196,-480.0,0.00013968,2]
[384868383,1757602238207,-480.0,0.00013969,2]
[384868385,1757602238219,-480.0,0.00013969,2]
[384868387,1757602238230,-480.0,0.00013969,2]
[384868389,1757602238241,-500.0,0.0001397,2]
[384868391,1757602238252,-7386.69809361,0.00013971,2]
[384868394,1757602238263,-481.11406537,0.00013971,2]
[384868396,1757602238274,-484.0963283,0.00013971,2]
[384868398,1757602238285,-512.41,0.00013971,2]
[384868399,1757602238296,-480.0,0.00013971,2]
[384868400,1757602238307,-480.0,0.00013971,2]
[384868401,1757602238317,-480.0,0.00013971,2]
[384868402,1757602238328,-481.90123479,0.00013971,2]
[384868403,1757602238340,-480.0,0.00013971,2]
[384868404,1757602238352,-480.0,0.00013971,2]
[384868405,1757602238364,-480.0,0.00013971,2]
[384868406,1757602238375,-480.0,0.00013971,2]
[384868407,1757602238386,-480.0,0.00013971,2]
[384868408,1757602238396,-485.11980277,0.00013971,2]
[384868409,1757602238408,-480.0,0.00013971,2]
[384868410,1757602238420,-409.18584205,0.00013971,2]
[384868411,1757602238431,-480.0,0.00013971,2]
[384868412,1757602238442,-400.69404245,0.00013971,2]
[384868413,1757602238453,-167.04940807,0.00013971,2]
[384868414,1757602239193,-190.85102536,0.00013954,2]
[384868415,1757602239204,-443.65123043,0.00013954,2]
[384868416,1757602239214,-480.0,0.00013954,2]
[384868417,1757602239225,-480.0,0.00013955,2]
[384868418,1757602239236,-313.7881291,0.00013971,2]
[384868419,1757602239247,-480.0,0.00013971,2]
[384868420,1757602239257,-160.04141405,0.00013971,2]
[384868421,1757602239267,-480.0,0.00013971,2]
[384868422,1757602239277,-480.0,0.00013971,2]
[384868423,1757602239286,-480.0,0.00013971,2]
[384868424,1757602239296,-480.0,0.00013971,2]
[384868425,1757602239308,-480.0,0.00013971,2]
[384868426,1757602239318,-480.0,0.00013971,2]
[384868427,1757602239328,-378.17148043,0.00013971,2]
[384868428,1757602239338,-480.0,0.00013971,2]
[384868429,1757602239347,-480.0,0.00013971,2]
[384868430,1757602239356,-480.0,0.00013971,2]
[384868431,1757602239365,-480.0,0.00013971,2]
[384868432,1757602239375,-481.30862865,0.00013971,2]
[384868433,1757602239384,-480.0,0.00013971,2]
[384868434,1757602239393,-480.2004721,0.00013971,2]
[384868435,1757602239402,-480.0,0.00013971,2]
[384868436,1757602239413,-480.0,0.00013971,2]
[384868437,1757602239422,-480.0,0.00013971,2]
[384868438,1757602239431,-480.0,0.00013971,2]
[384868439,1757602239440,-246.6369528,0.00013971,2]
[384868440,1757602239450,-480.0,0.00013971,2]
[384868441,1757602239459,-483.83840608,0.00013971,2]
[384868442,1757602239468,-480.0,0.00013971,2]
[384868443,1757602239479,-280.30932051,0.00013971,2]
[384868444,1757602239491,-480.0,0.00013971,2]
[384868445,1757602239501,-480.0,0.00013971,2]
[384868446,1757602239510,-480.0,0.00013971,2]
[384868447,1757602239521,-480.0,0.00013971,2]
[384868448,1757602239531,-495.27360896,0.00013971,2]
[384868449,1757602239540,-480.0,0.00013971,2]
[384868450,1757602239549,-480.0,0.00013971,2]
[384868451,1757602239558,-480.0,0.00013971,2]
[384868452,1757602239567,-500.0,0.00013971,2]
[384868453,1757602239577,-250.0,0.00014144,2]
[384868454,1757602239587,-500.0,0.00014183,2]
[384868455,1757602239598,-480.0,0.00014227,2]
[384868456,1757602239607,-521.29,0.00014227,2]
[384868457,1757602239616,-838.82,0.00014227,2]
[384868458,1757602239625,-480.0,0.00014228,2]
[384868459,1757602239635,-480.0,0.00014228,2]
[384868460,1757602239644,-2070.74,0.00014228,2]
[384868461,1757602239653,-480.0,0.00014229,2]
[384868462,1757602239663,-480.0,0.00014229,2]
[384868463,1757602239673,-1458.36,0.00014229,2]
[384868464,1757602239682,-480.0,0.00014229,2]
[384868465,1757602239691,-1030.31,0.00014229,2]
[384868467,1757602239700,-480.0,0.00014229,2]
[384868468,1757602239709,-1387.24,0.00014229,2]
[384868469,1757602239718,-1287.42,0.00014229,2]
[384868470,1757602239728,-480.0,0.00014229,2]
[384868471,1757602239737,-480.0,0.00014229,2]
[384868473,1757602239746,-480.0,0.00014229,2]
[384868474,1757602239756,-581.02,0.00014229,2]
[384868475,1757602239765,-771.38,0.00014229,2]
[384868476,1757602239775,-480.0,0.00014229,2]
[384868477,1757602239785,-717.94,0.00014229,2]
[384868478,1757602239794,-480.0,0.00014236,2]
[384868479,1757602239804,-480.0,0.00014236,2]
[384868480,1757602239813,-348.43739808,0.00014236,2]
[384868497,1757602240362,-131.56260192,0.00014236,2]
[384868498,1757602240372,-480.0,0.00014236,2]
[384868499,1757602240382,-480.0,0.00014236,2]
[384868500,1757602240392,-480.0,0.00014236,2]
[384868501,1757602240401,-480.0,0.00014236,2]
[384868502,1757602240413,-856.01,0.00014236,2]
[384868503,1757602240423,-1606.49,0.00014236,2]
[384868504,1757602240432,-480.0,0.00014236,2]
[384868505,1757602240442,-948.36,0.00014236,2]
[384868506,1757602240451,-480.0,0.00014236,2]
[384868507,1757602240460,-480.0,0.00014236,2]
[384868508,1757602240470,-480.0,0.00014236,2]
[384868509,1757602240479,-3449.09,0.00014236,2]
[384868510,1757602240489,-535.87,0.00014236,2]
[384868511,1757602240498,-480.0,0.00014236,2]
[384868512,1757602240507,-480.0,0.00014236,2]
[384868514,1757602240516,-869.94,0.00014236,2]
[384868516,1757602240525,-229.26028795,0.00014236,2]
[384868554,1757602243469,-340.92971205,0.00014236,2]
[384868555,1757602243479,-470.27476188,0.00014236,2]
[384868679,1757602246600,-9.72523812,0.00014236,2]
[384868680,1757602246609,-480.0,0.00014236,2]
[384868681,1757602246619,-204.63267573,0.00014236,2]
[384868682,1757602246631,-275.36732427,0.00014236,2]
[384868683,1757602246640,-480.0,0.00014236,2]
[384868684,1757602246650,-417.00312268,0.00014236,2]
[384868750,1757602556717,4550.0,0.00024,30]
[384868772,1757602831811,182.851586,0.00013699,2]
[384868773,1757602848668,23700.0,0.00023,30]
[384868796,1757603143158,558.032234,0.00013699,2]
[384868808,1757603344461,280.46444589,0.0001353,2]
[384868863,1757603432695,-1200.0,0.00013862,2]
[384868865,1757603432705,-1200.0,0.00013862,2]
[384868867,1757603432714,-300.0,0.00013863,2]
[384868869,1757603432724,-300.0,0.00013863,2]
[384868871,1757603432733,-300.0,0.00013863,2]
[384868873,1757603432743,-1000.0,0.00013864,2]
[384868875,1757603432753,-500.0,0.00013864,2]
[384868877,1757603432762,-500.0,0.00013864,2]
[384868879,1757603432772,-500.0,0.00013864,2]
[384868881,1757603432781,-500.0,0.00013864,2]
[384868883,1757603432790,-500.0,0.00013864,2]
[384868885,1757603432800,-500.0,0.00013864,2]
[384868887,1757603432809,-500.0,0.00013864,2]
[384868889,1757603432819,-394.83896378,0.00013864,2]
[384868892,1757603432828,-920.18955382,0.00013933,2]
[384868895,1757603432837,-500.0,0.0001394,2]
[384868897,1757603432847,-500.0,0.0001394,2]
[384868899,1757603432856,-500.0,0.0001394,2]
[384868902,1757603432866,-500.0,0.0001394,2]
[384868904,1757603432876,-500.0,0.0001394,2]
[384868906,1757603432886,-548.74781798,0.0001394,2]
[384868908,1757603432895,-500.0,0.0001394,2]
[384868910,1757603432905,-500.0,0.0001394,2]
[384868912,1757603432914,-481.23837047,0.0001394,2]
[384868913,1757603432923,-500.0,0.0001394,2]
[384868916,1757603432933,-500.0,0.0001394,2]
[384868918,1757603432947,-500.0,0.0001394,2]
[384868930,1757603433077,-500.0,0.0001394,2]
[384868933,1757603433096,-500.0,0.0001394,2]
[384868935,1757603433107,-500.0,0.0001394,2]
[384868937,1757603433117,-500.0,0.0001394,2]
[384868939,1757603433127,-500.0,0.0001394,2]
[384868941,1757603433137,-500.0,0.0001394,2]
[384868943,1757603433147,-500.0,0.0001394,2]
[384868945,1757603433157,-500.0,0.0001394,2]
[384868947,1757603433167,-500.0,0.0001394,2]
[384868949,1757603433178,-500.0,0.0001394,2]
[384868951,1757603433188,-500.0,0.0001394,2]
[384868953,1757603433197,-500.0,0.0001394,2]
[384868955,1757603433207,-500.0,0.0001394,2]
[384868957,1757603433217,-500.0,0.0001394,2]
[384868959,1757603433227,-500.0,0.0001394,2]
[384868961,1757603433236,-500.0,0.0001394,2]
[384868963,1757603433246,-500.0,0.0001394,2]
[384868965,1757603433257,-500.0,0.0001394,2]
[384868967,1757603433267,-500.0,0.0001394,2]
[384868969,1757603433277,-500.0,0.0001394,2]
[384868971,1757603433286,-375.0,0.0001394,2]
[384868973,1757603433296,-500.0,0.0001394,2]
[384868975,1757603433308,-500.0,0.0001394,2]
[384868977,1757603433317,-500.0,0.0001394,2]
[384868979,1757603433327,-500.0,0.0001394,2]
[384868981,1757603433337,-500.0,0.0001394,2]
[384868982,1757603433346,-500.0,0.0001394,2]
[384868984,1757603433356,-500.0,0.0001394,2]
[384868985,1757603433365,-500.0,0.0001394,2]
[384868987,1757603433376,-500.0,0.0001394,2]
[384868988,1757603433386,-500.0,0.0001394,2]
[384868989,1757603433396,-500.0,0.0001394,2]
[384868990,1757603433405,-500.0,0.0001394,2]
[384868991,1757603433415,-500.0,0.0001394,2]
[384868992,1757603433424,-500.0,0.0001394,2]
[384868993,1757603433434,-464.71605905,0.0001394,2]
[384868994,1757603433446,-35.28394095,0.0001394,2]
[384868995,1757603433455,-500.0,0.0001394,2]
[384868996,1757603433465,-500.0,0.0001394,2]
[384868997,1757603433475,-500.0,0.0001394,2]
[384868998,1757603433484,-500.0,0.0001394,2]
[384868999,1757603433494,-500.0,0.0001394,2]
[384869000,1757603433503,-500.0,0.0001394,2]
[384869001,1757603433513,-500.0,0.0001394,2]
[384869002,1757603433522,-500.0,0.0001394,2]
[384869003,1757603433532,-500.0,0.0001394,2]
[384869004,1757603433541,-500.0,0.0001394,2]
[384869005,1757603433551,-500.0,0.0001394,2]
[384869006,1757603433560,-500.0,0.0001394,2]
[384869007,1757603433569,-500.0,0.0001394,2]
[384869008,1757603433579,-500.0,0.0001394,2]
[384869009,1757603433588,-500.0,0.0001394,2]
[384869010,1757603433597,-500.0,0.0001394,2]
[384869011,1757603433607,-500.0,0.0001394,2]
[384869012,1757603433616,-500.0,0.0001394,2]
[384869013,1757603433625,-500.0,0.0001394,2]
[384869014,1757603433635,-500.0,0.0001394,2]
[384869015,1757603433645,-500.0,0.0001394,2]
[384869016,1757603433654,-500.0,0.0001394,2]
[384869017,1757603433663,-500.0,0.0001394,2]
[384869018,1757603433673,-500.0,0.0001394,2]
[384869019,1757603433684,-400.0,0.0001394,2]
[384869020,1757603433693,-500.0,0.0001394,2]
[384869021,1757603433703,-500.0,0.0001394,2]
[384869022,1757603433713,-500.0,0.0001394,2]
[384869023,1757603433723,-500.0,0.0001394,2]
[384869024,1757603433733,-500.0,0.0001394,2]
[384869025,1757603433743,-500.0,0.0001394,2]
[384869026,1757603433753,-500.0,0.0001394,2]
[384869027,1757603433762,-500.0,0.0001394,2]
[384869028,1757603433772,-480.0,0.0001394,2]
[384869029,1757603433781,-480.0,0.0001394,2]
[384869030,1757603433791,-845.61,0.0001394,2]
[384869031,1757603433801,-480.0,0.0001394,2]
[384869032,1757603433811,-480.0,0.0001394,2]
[384869033,1757603433821,-541.13,0.00013942,2]
[384869034,1757603433830,-480.0,0.00013942,2]
[384869035,1757603433840,-480.0,0.00013942,2]
[384869036,1757603433849,-482.63987726,0.00013942,2]
[384869037,1757603433859,-282.01618316,0.00013942,2]
[384869038,1757603433868,-480.0,0.00013942,2]
[384869039,1757603433878,-486.7909218,0.00013942,2]
[384869040,1757603433888,-480.0,0.00013942,2]
[384869041,1757603433898,-480.0,0.00013942,2]
[384869042,1757603433907,-2103.21,0.00013942,2]
[384869043,1757603433917,-480.0,0.00013942,2]
[384869044,1757603433927,-480.0,0.00013942,2]
[384869045,1757603433939,-480.0,0.00013942,2]
[384869046,1757603433949,-1503.76,0.00013942,2]
[384869047,1757603433958,-480.0,0.00013942,2]
[384869048,1757603433967,-480.0,0.00013942,2]
[384869049,1757603433977,-480.0,0.00013942,2]
[384869050,1757603433987,-480.0,0.00013942,2]
[384869051,1757603433998,-480.0,0.00013942,2]
[384869052,1757603434007,-944.45,0.00013942,2]
[384869053,1757603434017,-480.0,0.00013942,2]
[384869054,1757603434027,-1375.3,0.00013942,2]
[384869055,1757603434037,-1273.82,0.00013942,2]
[384869056,1757603434047,-480.0,0.00013942,2]
[384869057,1757603434056,-480.0,0.00013942,2]
[384869058,1757603434066,-480.0,0.00013942,2]
[384869059,1757603434076,-480.0,0.00013942,2]
[384869060,1757603434085,-18603.8837,0.00013947,2]
[384869061,1757603434094,-166.5957614,0.00013947,2]
[384869062,1757603434104,-162.380719,0.00013947,2]
[384869063,1757603434113,-371.77278505,0.00013947,2]
[384869064,1757603434123,-456.21957318,0.00013948,2]
[384869065,1757603434133,-480.0,0.00013948,2]
[384869066,1757603434142,-480.0,0.00013948,2]
[384869067,1757603434152,-469.70223458,0.00013948,2]
[384869068,1757603434162,-480.0,0.00013948,2]
[384869069,1757603434172,-480.0,0.00013948,2]
[384869070,1757603434181,-480.0,0.00013948,2]
[384869071,1757603434190,-480.0,0.00013948,2]
[384869072,1757603434200,-480.0,0.00013948,2]
[384869073,1757603434209,-480.0,0.00013948,2]
[384869074,1757603434219,-240.48018751,0.00013948,2]
[384869075,1757603434229,-480.0,0.00013948,2]
[384869076,1757603434238,-498.81563131,0.00013948,2]
[384869077,1757603434248,-615.97067192,0.00013948,2]
[384869078,1757603434257,-480.0,0.00013948,2]
[384869079,1757603434268,-480.0,0.00013948,2]
[384869080,1757603434277,-480.0,0.00013948,2]
[384869081,1757603434286,-480.0,0.00013948,2]
[384869082,1757603434296,-480.0,0.00013948,2]
[384869083,1757603434306,-480.0,0.00013948,2]
[384869084,1757603434315,-500.0,0.00013948,2]
[384869085,1757603434324,-480.0,0.00013948,2]
[384869086,1757603434333,-480.0,0.00013948,2]
[384869087,1757603434343,-480.0,0.00013948,2]
[384869088,1757603434352,-480.0,0.00013948,2]
[384869089,1757603434361,-221.28296193,0.00013948,2]
[384869090,1757603434370,-157.0,0.00013948,2]
[384869091,1757603434379,-268.92818536,0.00013948,2]
[384869092,1757603434388,-500.0,0.00013948,2]
[384869093,1757603434398,-500.0,0.00013948,2]
[384869094,1757603434407,-157.0,0.00013948,2]
[384869095,1757603434416,-157.0,0.00013948,2]
[384869096,1757603434426,-157.0,0.00013948,2]
[384869097,1757603434435,-157.0,0.00013948,2]
[384869098,1757603434445,-157.0,0.00013948,2]
[384869099,1757603434455,-157.0,0.00013948,2]
[384869100,1757603434464,-500.0,0.00013948,2]
[384869101,1757603434473,-157.0,0.00013948,2]
[384869102,1757603434483,-484.55353966,0.00013948,2]
[384869103,1757603434492,-500.0,0.00013948,2]
[384869104,1757603434501,-157.0,0.00013948,2]
[384869105,1757603434511,-157.0,0.00013948,2]
[384869106,1757603434521,-157.0,0.00013948,2]
[384869107,1757603434530,-9.40312593,0.00013948,2]
[384869108,1757603434543,-147.59687407,0.00013948,2]
[384869109,1757603434553,-480.0,0.00013948,2]
[384869110,1757603434562,-423.867781,0.00013948,2]
[384869179,1757603438758,-56.132219,0.00013948,2]
[384869181,1757603438768,-608.62365107,0.00013948,2]
[384869183,1757603438778,-189.72033667,0.00013948,2]
[384869185,1757603438790,-290.27966333,0.00013948,2]
[384869187,1757603438799,-561.03,0.00013948,2]
[384869189,1757603438811,-768.0760606,0.00013948,2]
[384869191,1757603438823,-11.3839394,0.00013948,2]
[384869193,1757603438833,-480.0,0.00013948,2]
[384869196,1757603438842,-691.01,0.00013948,2]
[384869197,1757603438852,-189.24465916,0.00013948,2]
[384869703,1757603444002,-480.0,0.0001394,2]
[384869705,1757603444014,-537.65,0.00013942,2]
[384869707,1757603444024,-290.75534084,0.00013948,2]
[384869709,1757603444034,-480.0,0.00013948,2]
[384869711,1757603444043,-480.0,0.00013948,2]
[384869713,1757603444052,-480.0,0.00013948,2]
[384869715,1757603444062,-480.0,0.00013948,2]
[384869717,1757603444072,-480.0,0.00013948,2]
[384869719,1757603444081,-480.0,0.00013948,2]
[384869721,1757603444091,-480.0,0.00013948,2]
[384869723,1757603444100,-480.0,0.00013948,2]
[384869725,1757603444110,-480.0,0.00013948,2]
[384869727,1757603444119,-165.51629064,0.00013948,2]
[384869729,1757603444128,-480.0,0.00013948,2]
[384869731,1757603444138,-500.0,0.00013948,2]
[384869733,1757603444146,-480.0,0.00013948,2]
[384869735,1757603444156,-480.0,0.00013948,2]
[384869737,1757603444165,-42.63423284,0.00013948,2]
[384869739,1757603444177,-495.26576716,0.00013948,2]
[384869742,1757603444186,-114.14124473,0.00013948,2]
[384869746,1757603444210,-670.53875527,0.00013948,2]
[384869748,1757603444219,-480.0,0.00013948,2]
[384869750,1757603444229,-340.53,0.00013948,2]
[384869752,1757603444238,-480.0,0.00013948,2]
[384869754,1757603444248,-500.0,0.00013948,2]
[384869756,1757603444257,-311.73657576,0.00013948,2]
[384869992,1757603446658,-2015.58,0.0001394,2]
[384869993,1757603446668,-188.26342424,0.00013948,2]
[384869996,1757603446678,-480.0,0.00013948,2]
[384869998,1757603446688,-480.0,0.00013948,2]
[384870000,1757603446698,-480.0,0.00013948,2]
[384870002,1757603446708,-480.0,0.00013948,2]
[384870003,1757603446717,-480.0,0.00013948,2]
[384870006,1757603446727,-480.0,0.00013948,2]
[384870007,1757603446736,-480.0,0.00013948,2]
[384870009,1757603446745,-480.0,0.00013948,2]
[384870012,1757603446754,-480.0,0.00013948,2]
[384870014,1757603446764,-606.9,0.00013948,2]
[384870015,1757603446774,-480.0,0.00013948,2]
[384870018,1757603446783,-529.58901423,0.00013948,2]
[384870020,1757603446793,-480.0,0.00013948,2]
[384870022,1757603446802,-480.0,0.00013948,2]
[384870023,1757603446811,-480.0,0.00013948,2]
[384870026,1757603446821,-480.0,0.00013948,2]
[384870028,1757603446830,-500.0,0.00013949,2]
[384870029,1757603446838,-620.24,0.0001395,2]
[384870031,1757603446847,-480.0,0.0001395,2]
[384870033,1757603446856,-480.0,0.0001395,2]
[384870035,1757603446865,-480.0,0.0001395,2]
[384870037,1757603446875,-480.0,0.0001395,2]
[384870039,1757603446885,-1629.48,0.0001395,2]
[384870041,1757603446894,-480.0,0.0001395,2]
[384870043,1757603446903,-869.33,0.0001395,2]
[384870045,1757603446914,-3482.09,0.0001395,2]
[384870047,1757603446923,-837.61,0.0001395,2]
[384870050,1757603446932,-542.68,0.0001395,2]
[384870051,1757603446944,-1221.47,0.0001395,2]
[384870053,1757603446954,-1384.91,0.0001395,2]
[384870056,1757603446964,-500.0,0.00013951,2]
[384870057,1757603446973,-500.0,0.00013951,2]
[384870060,1757603446983,-228.17730875,0.00013952,2]
[384870062,1757603446992,-157.0,0.00013952,2]
[384870063,1757603447002,-157.0,0.00013952,2]
[384870065,1757603447011,-480.0,0.00013952,2]
[384870067,1757603447022,-480.0,0.00013952,2]
[384870069,1757603447031,-518.52,0.00013952,2]
[384870071,1757603447040,-480.0,0.00013953,2]
[384870073,1757603447050,-480.0,0.00013953,2]
[384870075,1757603447059,-480.0,0.00013953,2]
[384870077,1757603447069,-480.0,0.00013953,2]
[384870079,1757603447078,-480.0,0.00013953,2]
[384870081,1757603447088,-480.0,0.00013953,2]
[384870083,1757603447097,-501.42,0.00013953,2]
[384870085,1757603447107,-480.0,0.00013953,2]